fUSD/lending_fUSD_20250225
["ID","MTS","AMOUNT","RATE_DAILY","PERIOD"]
[354371618,1740456638507,-2138.09574131,0.00038379,120]
[354371619,1740456638517,-150.0,0.00038463,7]
[354371620,1740456638526,-310.65795877,0.00038641,7]
[354371621,1740456638538,-689.34204123,0.00038641,7]
[354371622,1740456638547,-343.82771505,0.00038679,7]
[354371623,1740456638556,-166.28,0.00038779,2]
[354371624,1740456638565,-150.0,0.00038844,7]
[354371625,1740456638574,-150.0,0.00038898,7]
[354371626,1740456638584,-322.12381181,0.000389,2]
[354371627,1740456638594,-3154.53312662,0.000389,2]
[354371628,1740456638603,-9322.5,0.00038909,117]
[354371629,1740456638612,-215.39,0.0003899,2]
[354371630,1740456638622,-215.39,0.0003899,2]
[354371631,1740456638631,-215.39,0.0003899,2]
[354371632,1740456638641,-215.39,0.0003899,2]
[354371634,1740456638650,-215.39,0.0003899,2]
[354371635,1740456638659,-215.39,0.0003899,2]
[354371636,1740456638669,-215.39,0.0003899,2]
[354371637,1740456638678,-215.39,0.0003899,2]
[354371638,1740456638688,-215.39,0.0003899,2]
[354371639,1740456638697,-215.39,0.0003899,2]
[354371641,1740456638706,-215.39,0.0003899,2]
[354371642,1740456638715,-95.31869216,0.0003899,2]
[354371645,1740456638743,-120.07130784,0.0003899,2]
[354371646,1740456638754,-215.39,0.0003899,2]
[354371647,1740456638763,-215.39,0.0003899,2]
[354371648,1740456638773,-215.39,0.0003899,2]
[354371649,1740456638783,-215.39,0.0003899,2]
[354371650,1740456638792,-215.39,0.0003899,2]
[354371651,1740456638802,-80.05869211,0.0003899,2]
[354371652,1740456638814,-135.33130789,0.0003899,2]
[354371653,1740456638823,-215.39,0.0003899,2]
[354371654,1740456638832,-215.39,0.0003899,2]
[354371655,1740456638842,-215.39,0.0003899,2]
[354371656,1740456638851,-104.66805485,0.0003899,2]
[354371657,1740456638862,-110.72194515,0.0003899,2]
[354371658,1740456638871,-215.39,0.0003899,2]
[354371659,1740456638880,-215.39,0.0003899,2]
[354371660,1740456638889,-215.39,0.0003899,2]
[354371661,1740456638898,-215.39,0.0003899,2]
[354371662,1740456638907,-215.39,0.0003899,2]
[354371663,1740456638916,-215.39,0.0003899,2]
[354371664,1740456638925,-215.39,0.0003899,2]
[354371665,1740456638934,-86.30213602,0.0003899,2]
[354371666,1740456638945,-129.08786398,0.0003899,2]
[354371667,1740456638954,-215.39,0.0003899,2]
[354371668,1740456638962,-104.40243602,0.0003899,2]
[354371669,1740456638973,-110.98756398,0.0003899,2]
[354371670,1740456638982,-215.39,0.0003899,2]
[354371671,1740456638994,-118.5316789,0.0003899,2]
[354371672,1740456639006,-96.8583211,0.0003899,2]
[354371673,1740456639015,-215.39,0.0003899,2]
[354371674,1740456639025,-215.39,0.0003899,2]
[354371675,1740456639035,-215.39,0.0003899,2]
[354371676,1740456639044,-58.66662594,0.0003899,2]
[354371679,1740456640349,-1053.91278966,0.00035692,2]
[354371680,1740456640360,-535.02444576,0.00035692,2]
[354371681,1740456640381,-1297.79569775,0.00035692,2]
[354371682,1740456640392,-156.72337406,0.0003899,2]
[354371683,1740456640402,-215.39,0.0003899,2]
[354371684,1740456640412,-215.39,0.0003899,2]
[354371685,1740456640422,-215.39,0.0003899,2]
[354371686,1740456640432,-215.39,0.0003899,2]
[354371687,1740456640441,-215.39,0.0003899,2]
[354371688,1740456640451,-215.39,0.0003899,2]
[354371689,1740456640461,-215.39,0.0003899,2]
[354371690,1740456640471,-215.39,0.0003899,2]
[354371691,1740456640480,-215.39,0.0003899,2]
[354371692,1740456640490,-215.39,0.0003899,2]
[354371693,1740456640500,-215.39,0.0003899,2]
[354371694,1740456640509,-215.39,0.0003899,2]
[354371695,1740456640519,-215.39,0.0003899,2]
[354371696,1740456640529,-215.39,0.0003899,2]
[354371697,1740456640539,-215.39,0.0003899,2]
[354371698,1740456640548,-215.39,0.0003899,2]
[354371699,1740456640558,-25740.21389264,0.00039,60]
[354371700,1740456640953,-758.79780336,0.00039,60]
[354371701,1740456642523,-321.14404674,0.00037601,2]
[354371702,1740456642533,-913.47595335,0.00039,60]
[354371703,1740456642544,-574.72339879,0.00039,60]
[354371704,1740456642556,-2682.15466094,0.00039,60]
[354371705,1740456642583,-219330.63429092,0.00039,60]
[354371706,1740456642592,-37562.08034189,0.00039,2]
[354371707,1740456642629,-61616.0,0.00039,2]
[354371708,1740456642683,-3594.43905136,0.00039,2]
[354371709,1740456642696,-1431.37412263,0.00039,2]
[354371710,1740456642709,-20257.95819503,0.00039,2]
[354371711,1740456642721,-7326.50999995,0.00039,2]
[354371712,1740456642733,-7068.2529845,0.00039,2]
[354371713,1740456642745,-4702.1225,0.00039,2]
[354371714,1740456642760,-3249.95340702,0.00039,2]
[354371715,1740456642771,-1399.79399091,0.00039,2]
[354371716,1740456642792,-2004.69357214,0.00039,2]
[354371717,1740456642804,-508.00324188,0.00039,2]
[354371718,1740456642816,-738.9608181,0.00039,2]
[354371719,1740456642827,-2256.50655973,0.00039,2]
[354371759,1740456643444,-282.22400001,0.00039,2]
[354371763,1740456643461,-386.4901369,0.00039,2]
[354371766,1740456643473,-392.53922624,0.00039,2]
[354371769,1740456643485,-545.755,0.00039,2]
[354371770,1740456643505,-2305.68935329,0.00039,2]
[354371771,1740456643517,-835.04991627,0.00039,2]
[354371772,1740456643528,-1635.41090626,0.00039,2]
[354371780,1740456644535,-562.94029799,0.00039,2]
[354371781,1740456644570,-36770.41652383,0.00039,2]
[354371782,1740456644582,-3950.84202942,0.00039,2]
[354371783,1740456644594,-126728.41432518,0.00039,2]
[354371784,1740456644607,-182171.98144177,0.00039,2]
[354371785,1740456644620,-716.34102475,0.00039,2]
[354371786,1740456644632,-512.6900035,0.00039,2]
[354371787,1740456644656,-447.27153168,0.00039,2]
[354371788,1740456644666,-1086.48280957,0.00039,2]
[354371789,1740456644678,-284.74638608,0.00039,2]
[354371790,1740456644690,-1745.32369441,0.00039,2]
[354371791,1740456644710,-293.40252301,0.00039,2]
[354371792,1740456646245,-343.53915486,0.00036345,2]
[354371793,1740456646257,-2543.19377831,0.00036345,2]
[354371794,1740456646267,-4325.30622169,0.00039,2]
[354371795,1740456646278,-274.29142085,0.00039,2]
[354371796,1740456646300,-27477.45092738,0.00039,2]
[354371797,1740456646311,-205739.59071159,0.00039,2]
[354371798,1740456646328,-760557.42001225,0.00039,2]
[354371799,1740456646366,-84171.43113657,0.00039,2]
[354371800,1740456646416,-509.38332413,0.00039,2]
[354371801,1740456646523,-658.63300375,0.00039,2]
[354371802,1740456646536,-659.56029054,0.00039,2]
[354371803,1740456646547,-5627.124252,0.00039,2]
[354371804,1740456646578,-668.30843146,0.00039,2]
[354371805,1740456646590,-607.48674632,0.00039,2]
[354371806,1740456646605,-432.19494406,0.00039,2]
[354371818,1740456718960,183.63,8.767e-05,2]
[354371837,1740457831448,-300.0,9.989e-05,2]
[354371839,1740457831457,-1184.54471875,9.99e-05,2]
[354371843,1740457831514,-44773.78176171,9.99e-05,2]
[354371849,1740457832151,-3972.50683602,9.99e-05,2]
[354371850,1740457832163,-6099.9999999,9.99e-05,2]
[354371851,1740457832175,-4880.0,9.99e-05,2]
[354371852,1740457832187,-116811.43990336,9.99e-05,2]
[354371853,1740457832197,-1306220.36577006,0.0001,2]
[354371854,1740457832207,-1771.80055567,0.0001,2]
[354371855,1740457832252,-5709.33075171,0.0001,2]
[354371856,1740457832264,-23934.41887302,0.0001,2]
[354371857,1740457832275,-81259.4072221,0.0001,2]
[354371858,1740457832299,-18415.75351124,0.0001,2]
[354371867,1740457837556,-20840.38875575,0.0001,2]
[354371868,1740457837594,-76186.29537192,0.0001,2]
[354371869,1740457837633,-23166.17602916,0.0001,2]
[354371870,1740457837694,-396.49705596,0.0001,2]
[354371871,1740457837706,-1378.6711066,0.0001,2]
[354371872,1740457837719,-4035995.01653286,0.0001,2]
[354371873,1740457837729,-332.8912856,0.0001,2]
[354371874,1740457837738,-500.0,0.0001,2]
[354371875,1740457837748,-1385.75751886,0.0001,2]
[354371876,1740457837759,-1681.15541266,0.0001,2]
[354371877,1740457837769,-5540185.76656859,0.0001,2]
[354371878,1740457837779,-176.97814388,0.0001,2]
[354371879,1740457837789,-755.75106926,0.0001,2]
[354371880,1740457837799,-321.14404674,0.0001,2]
[354371881,1740457837809,-214.74920786,0.0001,2]
[354371882,1740457837819,-249.42987404,0.000101,2]
[354371883,1740457837828,-198.74323438,0.00010136,2]
[354371884,1740457837838,-526.50738929,0.000109,2]
[354371885,1740457837852,-420.0,0.00010988,2]
[354371886,1740457837862,-16876.52847751,0.00011,2]
[354371887,1740457837872,-300.0,0.00011098,2]
[354371888,1740457837881,-91206.77606398,0.00011099,2]
[354371889,1740457837891,-587.0,0.00012087,2]
[354371890,1740457837900,-2264.70278667,0.000122,2]
[354371891,1740457837910,-2264.70278639,0.00012417,2]
[354371892,1740457837919,-3500.0,0.00013,2]
[354371893,1740457837931,-4245.42200386,0.00013,2]
[354371894,1740457837940,-700.68643301,0.00013,2]
[354371895,1740457837951,-151.45,0.00013,2]
[354371896,1740457837961,-151.45,0.00013,2]
[354371897,1740457837970,-151.45,0.00013,2]
[354371899,1740457837981,-151.45,0.00013,2]
[354371900,1740457837991,-151.45,0.00013,2]
[354371901,1740457838001,-151.45,0.00013,2]
[354371902,1740457838013,-151.45,0.00013,2]
[354371903,1740457838024,-151.45,0.00013,2]
[354371904,1740457838035,-151.45,0.00013,2]
[354371905,1740457838045,-151.45,0.00013,2]
[354371906,1740457838055,-151.45,0.00013,2]
[354371907,1740457838066,-151.45,0.00013,2]
[354371908,1740457838076,-151.45,0.00013,2]
[354371909,1740457838086,-151.45,0.00013,2]
[354371910,1740457838096,-151.45,0.00013,2]
[354371911,1740457838107,-151.45,0.00013,2]
[354371912,1740457838116,-151.45,0.00013,2]
[354371913,1740457838127,-151.45,0.00013,2]
[354371914,1740457838137,-151.45,0.00013,2]
[354371915,1740457838147,-151.45,0.00013,2]
[354371916,1740457838157,-151.45,0.00013,2]
[354371917,1740457838167,-151.45,0.00013,2]
[354371918,1740457838177,-151.45,0.00013,2]
[354371919,1740457838187,-151.45,0.00013,2]
[354371920,1740457838197,-151.45,0.00013,2]
[354371921,1740457838207,-151.45,0.00013,2]
[354371922,1740457838217,-151.45,0.00013,2]
[354371923,1740457838227,-151.45,0.00013,2]
[354371924,1740457838236,-151.45,0.00013,2]
[354371925,1740457838246,-151.45,0.00013,2]
[354371926,1740457838255,-151.45,0.00013,2]
[354371927,1740457838268,-151.45,0.00013,2]
[354371928,1740457838277,-151.45,0.00013,2]
[354371929,1740457838287,-151.45,0.00013,2]
[354371930,1740457838296,-151.45,0.00013,2]
[354371931,1740457838305,-151.45,0.00013,2]
[354371934,1740457838315,-151.45,0.00013,2]
[354371937,1740457838324,-151.45,0.00013,2]
[354371940,1740457838334,-151.45,0.00013,2]
[354371943,1740457838344,-151.45,0.00013,2]
[354371945,1740457838353,-151.45,0.00013,2]
[354371948,1740457838362,-151.45,0.00013,2]
[354371950,1740457838371,-151.45,0.00013,2]
[354371952,1740457838380,-151.45,0.00013,2]
[354371954,1740457838392,-151.45,0.00013,2]
[354371956,1740457838401,-151.45,0.00013,2]
[354371958,1740457838411,-151.45,0.00013,2]
[354371960,1740457838421,-151.45,0.00013,2]
[354371962,1740457838430,-151.45,0.00013,2]
[354371964,1740457838439,-151.45,0.00013,2]
[354371966,1740457838449,-151.45,0.00013,2]
[354371968,1740457838458,-151.45,0.00013,2]
[354371970,1740457838468,-151.45,0.00013,2]
[354371972,1740457838477,-151.45,0.00013,2]
[354371974,1740457838487,-151.45,0.00013,2]
[354371976,1740457838496,-151.45,0.00013,2]
[354371978,1740457838505,-151.45,0.00013,2]
[354371980,1740457838517,-151.45,0.00013,2]
[354371982,1740457838527,-151.45,0.00013,2]
[354371984,1740457838536,-151.45,0.00013,2]
[354371986,1740457838546,-151.45,0.00013,2]
[354371988,1740457838555,-151.45,0.00013,2]
[354371990,1740457838565,-151.45,0.00013,2]
[354371991,1740457838574,-151.45,0.00013,2]
[354371992,1740457838583,-5126.26985841,0.0001305,2]
[354371993,1740457838592,-823.0,0.00013295,2]
[354371994,1740457838601,-300.0,0.00013369,2]
[354371995,1740457838610,-300.0,0.00013369,2]
[354371996,1740457838619,-279707.53821835,0.0001337,2]
[354372071,1740457839411,-251.70842612,0.0001337,2]
[354372111,1740457842692,-742.77656244,0.000123,2]
[354372118,1740457845530,-1210.20171699,0.000123,2]
[354372121,1740457845590,-274.58887544,0.000123,2]
[354372122,1740457845601,-943.49924152,0.000123,2]
[354372123,1740457845649,-394.8621438,0.000123,2]
[354372124,1740457845661,-388.37362269,0.000123,2]
[354372125,1740457845672,-16478.04150633,0.000123,2]
[354372132,1740458007436,-950.0,9.89e-05,2]
[354372135,1740458743840,178.33,8.767e-05,2]
[354372149,1740459031652,-150.0,0.00010632,2]
[354372150,1740459031662,-500.0,0.00010879,2]
[354372151,1740459031671,-57.43263304,0.00010879,2]
[354372152,1740459031683,-277.224,0.00010879,2]
[354372153,1740459031712,-165.34336696,0.00010879,2]
[354372154,1740459031721,-150.0,0.00011423,2]
[354372155,1740459031731,-150.0,0.00011695,2]
[354372156,1740459031743,-1918.62682,0.0001324,2]
[354372157,1740459031752,-1154.7979324,0.0001327,2]
[354372158,1740459031761,-150.0,0.00013369,2]
[354372159,1740459031771,-51357.00497133,0.0001337,2]
[354372160,1740459031780,-200.0,0.0001337,2]
[354372161,1740459031790,-29831.69187823,0.0001343,2]
[354372162,1740459031799,-1596.9972,0.0001343,2]
[354372163,1740459031810,-819.0854,0.0001343,2]
[354372164,1740459031821,-142167.63513555,0.0001353,2]
[354372165,1740459031830,-58913.98361481,0.0001353,2]
[354372166,1740459031840,-168.04625901,0.0001353,2]
[354372167,1740459031850,-2000.0,0.00013539,2]
[354372168,1740459031861,-500.0,0.00013573,2]
[354372169,1740459031870,-200.0,0.00013592,2]
[354372170,1740459031879,-200054.2818808,0.000136,2]
[354372171,1740459031888,-172.15,0.00013699,2]
[354372172,1740459031898,-2087.96,0.00013712,2]
[354372173,1740459031908,-66157.01430044,0.000139,2]
[354372174,1740459031918,-31820.08863822,0.00014,2]
[354372175,1740459031927,-3975.05822756,0.00014,2]
[354372176,1740459031936,-220.0,0.0001414,2]
[354372177,1740459031946,-250.0,0.00014148,2]
[354372178,1740459031955,-150.0,0.0001426,2]
[354372179,1740459031965,-23900.0,0.0001429,2]
[354372180,1740459031974,-9882.95674948,0.0001439,2]
[354372181,1740459031985,-200.0,0.00014688,2]
[354372182,1740459031995,-423.54,0.00014836,2]
[354372183,1740459032004,-500.0,0.00014836,2]
[354372184,1740459032014,-2113.72260065,0.000149,2]
[354372185,1740459032023,-1318.0,0.00015,2]
[354372186,1740459032032,-301.06,0.00015319,2]
[354372187,1740459032042,-183.63,0.00015516,2]
[354372188,1740459032052,-541.37512496,0.00015739,2]
[354372189,1740459032061,-1918.62682,0.0001574,2]
[354372190,1740459032070,-300.07,0.00016238,2]
[354372191,1740459032079,-29831.69187814,0.0001626,2]
[354372192,1740459032088,-2113.72260063,0.00016383,2]
[354372193,1740459032098,-159.4,0.00016438,2]
[354372194,1740459032107,-198.16951585,0.00017084,2]
[354372195,1740459032116,-2185.939,0.00017084,2]
[354372196,1740459032125,-170.23816829,0.000172,2]
[354372197,1740459032135,-27423.94325681,0.00017812,2]
[354372198,1740459032144,-2113.72260063,0.00017866,2]
[354372199,1740459032154,-200.0,0.00018082,2]
[354372200,1740459032164,-1918.62682,0.0001824,2]
[354372201,1740459032174,-300.07,0.00018502,2]
[354372202,1740459032183,-29831.69187814,0.0001909,2]
[354372203,1740459032193,-2113.72260063,0.00019348,2]
[354372204,1740459032203,-155.42,0.00019397,30]
[354372205,1740459032213,-500.0,0.000195,2]
[354372206,1740459032223,-500.0,0.000195,2]
[354372207,1740459032236,-500.0,0.000195,2]
[354372208,1740459032247,-500.0,0.000195,2]
[354372209,1740459032257,-500.0,0.000195,2]
[354372210,1740459032267,-500.0,0.000195,2]
[354372211,1740459032276,-500.0,0.000195,2]
[354372212,1740459032286,-500.0,0.000195,2]
[354372213,1740459032295,-500.0,0.000195,2]
[354372214,1740459032304,-500.0,0.000195,2]
[354372215,1740459032314,-500.0,0.000195,2]
[354372216,1740459032323,-500.0,0.000195,2]
[354372217,1740459032333,-500.0,0.000195,2]
[354372218,1740459032342,-500.0,0.000195,2]
[354372219,1740459032351,-500.0,0.000195,2]
[354372220,1740459032361,-600.0,0.000195,2]
[354372221,1740459032371,-500.0,0.000195,2]
[354372222,1740459032380,-500.0,0.000195,2]
[354372223,1740459032389,-500.0,0.000195,2]
[354372224,1740459032399,-500.0,0.000195,2]
[354372225,1740459032408,-500.0,0.000195,2]
[354372226,1740459032418,-500.0,0.000195,2]
[354372227,1740459032427,-500.0,0.000195,2]
[354372228,1740459032436,-500.0,0.000195,2]
[354372229,1740459032445,-500.0,0.000195,2]
[354372230,1740459032455,-500.0,0.000195,2]
[354372231,1740459032463,-800.0,0.000195,2]
[354372232,1740459032472,-500.0,0.000195,2]
[354372233,1740459032481,-500.0,0.000195,2]
[354372234,1740459032495,-500.0,0.000195,2]
[354372235,1740459032504,-2026.0,0.00019582,2]
[354372236,1740459032514,-1274.0,0.00019582,2]
[354372237,1740459032523,-569.0,0.00019582,2]
[354372238,1740459032532,-1787.0,0.00019582,2]
[354372239,1740459032541,-784.0,0.00019582,2]
[354372240,1740459032551,-539.0,0.00019582,2]
[354372241,1740459032560,-908.0,0.00019582,2]
[354372242,1740459032570,-1266.0,0.00019582,2]
[354372243,1740459032580,-4031.0,0.00019582,2]
[354372244,1740459032589,-150.0,0.00019582,2]
[354372245,1740459032598,-3919.0,0.00019582,2]
[354372246,1740459032607,-1009.0,0.00019582,2]
[354372247,1740459032616,-1154.79793237,0.00019596,2]
[354372248,1740459032625,-3008.20369495,0.0001987,2]
[354372249,1740459032634,-998.83059276,0.00020064,2]
[354372250,1740459032644,-998.83059267,0.00020064,2]
[354372251,1740459032653,-1000.0,0.0002014,2]
[354372252,1740459032663,-227.71,0.00020428,2]
[354372253,1740459032672,-1918.62682,0.0002074,2]
[354372254,1740459032682,-300.07,0.00020766,2]
[354372255,1740459032691,-2113.72260063,0.00020831,2]
[354372256,1740459032700,-550.0,0.00021,2]
[354372257,1740459032710,-150.0,0.00021064,30]
[354372258,1740459032719,-4061.33058579,0.00021064,2]
[354372259,1740459032728,-301.06,0.00021447,2]
[354372260,1740459032740,-221.0,0.00021454,2]
[354372261,1740459032749,-165.11398895,0.00021473,2]
[354372262,1740459032758,-264.30623728,0.00021473,2]
[354372263,1740459032767,-179.43538389,0.00021473,2]
[354372264,1740459032777,-563538.09011156,0.00021554,2]
[354372265,1740459032786,-302.6044423,0.00021573,2]
[354372266,1740459032795,-522.03543364,0.00021573,2]
[354372267,1740459032804,-500.92309865,0.00021573,2]
[354372268,1740459032814,-164.41385766,0.00021918,2]
[354372269,1740459032827,-29831.69187814,0.0002192,2]
[354372270,1740459032837,-155.42,0.00022125,30]
[354372271,1740459032846,-183.63,0.00022264,2]
[354372272,1740459032855,-2113.72260063,0.00022314,3]
[354372273,1740459032865,-1000.0,0.00022658,2]
[354372274,1740459032875,-18404.61844467,0.00022772,2]
[354372275,1740459032883,-227.71,0.00022982,2]
[354372276,1740459032893,-500.0,0.00023,30]
[354372277,1740459032903,-500.0,0.00023,30]
[354372278,1740459032912,-500.0,0.00023,30]
[354372279,1740459032921,-500.0,0.00023,30]
[354372280,1740459032930,-500.0,0.00023,30]
[354372281,1740459032939,-500.0,0.00023,30]
[354372282,1740459032948,-500.0,0.00023,30]
[354372283,1740459032958,-500.0,0.00023,30]
[354372284,1740459032967,-500.0,0.00023,30]
[354372285,1740459032976,-500.0,0.00023,30]
[354372286,1740459032990,-500.0,0.00023,30]
[354372287,1740459033000,-500.0,0.00023,30]
[354372288,1740459033010,-500.0,0.00023,30]
[354372289,1740459033021,-500.0,0.00023,30]
[354372290,1740459033030,-496.24592193,0.00023,30]
[354372291,1740459033041,-500.0,0.00023,30]
[354372292,1740459033051,-500.0,0.00023,30]
[354372293,1740459033062,-500.0,0.00023,30]
[354372294,1740459033072,-500.0,0.00023,30]
[354372295,1740459033082,-500.0,0.00023,30]
[354372296,1740459033092,-500.0,0.00023,30]
[354372297,1740459033102,-500.0,0.00023,30]
[354372298,1740459033112,-500.0,0.00023,30]
[354372299,1740459033122,-500.0,0.00023,30]
[354372300,1740459033132,-500.0,0.00023,30]
[354372301,1740459033141,-500.0,0.00023,30]
[354372302,1740459033151,-500.0,0.00023,30]
[354372303,1740459033161,-500.0,0.00023,30]
[354372304,1740459033171,-500.0,0.00023,30]
[354372305,1740459033181,-500.0,0.00023,30]
[354372306,1740459033191,-500.0,0.00023,30]
[354372307,1740459033202,-500.0,0.00023,30]
[354372308,1740459033212,-500.0,0.00023,30]
[354372309,1740459033223,-500.0,0.00023,30]
[354372310,1740459033235,-500.0,0.00023,30]
[354372311,1740459033245,-500.0,0.00023,30]
[354372312,1740459033256,-500.0,0.00023,30]
[354372313,1740459033266,-500.0,0.00023,30]
[354372314,1740459033277,-500.0,0.00023,30]
[354372315,1740459033287,-600.0,0.00023,2]
[354372316,1740459033298,-300.07,0.0002303,2]
[354372317,1740459033307,-1918.62682,0.0002324,2]
[354372318,1740459033317,-2113.72260063,0.00023797,3]
[354372319,1740459033327,-263.0,0.00024,3]
[354372320,1740459033338,-497.49607626,0.00024215,2]
[354372321,1740459033348,-5550.0,0.000247,5]
[354372322,1740459033357,-29831.69187814,0.0002475,2]
[354372323,1740459033368,-155.42,0.00024852,30]
[354372324,1740459033378,-94.40862352,0.00025,2]
[354372325,1740459033397,-555.59137648,0.00025,2]
[354372326,1740459033407,-3353.65469636,0.00025134,2]
[354372327,1740459033417,-1000.0,0.00025175,2]
[354372328,1740459033427,-232.0,0.000252,2]
[354372329,1740459033436,-367.0,0.000252,2]
[354372330,1740459033446,-677.0,0.000252,2]
[354372331,1740459033455,-2113.72260063,0.00025279,4]
[354372332,1740459033465,-300.07,0.00025294,2]
[354372333,1740459033474,-227.71,0.00025536,120]
[354372334,1740459033488,-1918.62682,0.0002574,2]
[354372335,1740459033498,-6723.9129952,0.00025813,2]
[354372336,1740459033508,-1154.79793237,0.00025922,2]
[354372337,1740459033519,-982.77242394,0.00025928,2]
[354372338,1740459033532,-16.05816873,0.00025928,2]
[354372339,1740459033541,-264.30623728,0.00026026,2]
[354372340,1740459033551,-1739.34068579,0.00026762,4]
[354372341,1740459033563,-374.38191484,0.00026762,4]
[354372342,1740459033572,-2280.7042125,0.00027,2]
[354372343,1740459033582,-700.0,0.00027,2]
[354372344,1740459033592,-900.92110005,0.000271,60]
[354372345,1740459033602,-300.07,0.00027558,2]
[354372346,1740459033612,-155.42,0.0002758,30]
[354372347,1740459033623,-4141.14885794,0.0002758,2]
[354372348,1740459034263,-25690.5430202,0.0002758,2]
[354372349,1740459034273,-1000.0,0.00027693,2]
[354372350,1740459034283,-3100.11,0.00028,21]
[354372351,1740459034293,-227.71,0.00028089,120]
[354372352,1740459034303,-151.0,0.00028124,7]
[354372353,1740459034313,-151.0,0.00028124,7]
[354372354,1740459034322,-1500.0,0.000282,2]
[354372355,1740459034332,-2113.72260063,0.00028245,5]
[354372356,1740459034341,-31428.958,0.000289,3]
[354372357,1740459034351,-73880.0,0.0002899,2]
[354372358,1740459034360,-750.0,0.00029,2]
[354372359,1740459034370,-183.63,0.00029012,2]
[354372360,1740459034379,-4000.0,0.00029494,2]
[354372361,1740459034388,-2113.72260063,0.00029728,5]
[354372362,1740459034398,-300.07,0.00029822,2]
[354372363,1740459034407,-40010.34926479,0.000299,2]
[354372364,1740459034417,-150.0,0.0003,2]
[354372365,1740459034426,-49449.44468308,0.0003,10]
[354372366,1740459034442,-357.59262874,0.0003,10]
[354372367,1740459034457,-3730.91355299,0.0003,10]
[354372368,1740459034483,-426.36644233,0.0003,10]
[354372394,1740459043816,-776.16,0.00019582,2]
[354372395,1740459043833,-61.355,0.00019582,2]
[354372396,1740459043843,-9179.12992442,0.0003,10]
[354372408,1740459045769,-278.26877022,0.0003,10]
[354372410,1740459791814,155.09,8.767e-05,2]
[354372460,1740460232021,-963.932,0.0001343,2]
[354372461,1740460232031,-200.0,0.0001429,2]
[354372462,1740460232041,-150.0,0.00014773,2]
[354372463,1740460232050,-186.068,0.000149,2]
[354372464,1740460232062,-29.87361825,0.000149,2]
[354372465,1740460232071,-155.09,0.00015516,2]
[354372466,1740460232081,-300.0,0.00016327,2]
[354372467,1740460232091,-222.729,0.00016328,2]
[354372468,1740460232100,-266.9422,0.00016328,2]
[354372469,1740460232110,-269.73538109,0.00016328,2]
[354372470,1740460232125,-1312.86736666,0.00016328,2]
[354372496,1740460237808,-6205.50155225,0.00016328,2]
[354372497,1740460237818,-11932.67675131,0.00016365,2]
[354372498,1740460237829,-215.94161825,0.00016365,2]
[354372499,1740460237839,-165975.88007861,0.00016418,2]
[354372500,1740460237865,-677.2500001,0.00016418,2]
[354372501,1740460238119,-18971.67839232,0.00016418,2]
[354372666,1740460240205,-1579.93179621,0.00016418,2]
[354372668,1740460240220,-1000.78,0.00016418,2]
[354372677,1740460240308,-510.2305526,0.00016418,2]
[354372746,1740460243625,-11635.09813654,0.00016418,2]
[354372747,1740460243636,-19014.80242085,0.00016418,2]
[354372748,1740460243646,-577.39896621,0.00016465,2]
[354372749,1740460243655,-150.0,0.00016565,2]